bitfinex/quotes_BTCUSD_20230906
["timestamp","ask_amount","ask_price","bid_price","bid_amount"]
[1694004311147,2.31550453,25742.0,25741.0,1.55794]
[1694004311344,2.31418453,25742.0,25741.0,1.55794]
[1694004311547,2.31430453,25742.0,25741.0,1.55794]
[1694004311843,2.31418453,25742.0,25741.0,1.55794]
[1694004312134,2.31466453,25742.0,25741.0,1.55794]
[1694004312288,2.31376453,25742.0,25741.0,1.55794]
[1694004312497,2.31400453,25742.0,25741.0,1.55794]
[1694004312700,2.31448453,25742.0,25741.0,1.55794]
[1694004312899,2.31460453,25742.0,25741.0,1.55794]
[1694004313217,2.31574453,25742.0,25741.0,1.55794]
[1694004313417,2.31628453,25742.0,25741.0,1.55794]
[1694004313747,2.31652453,25742.0,25741.0,1.55794]
[1694004313973,2.31718453,25742.0,25741.0,1.55794]
[1694004314476,2.31784453,25742.0,25741.0,1.55794]
[1694004314695,2.31808453,25742.0,25741.0,1.55794]
[1694004314997,2.32132453,25742.0,25741.0,1.55794]
[1694004315218,2.32348453,25742.0,25741.0,1.55794]
[1694004315876,2.32276453,25742.0,25741.0,1.55794]
[1694004316075,2.32198453,25742.0,25741.0,1.55794]
[1694004316193,2.32186453,25742.0,25741.0,1.55794]
[1694004316391,2.32198453,25742.0,25741.0,1.55794]
[1694004316588,2.32210453,25742.0,25741.0,1.55794]
[1694004316793,2.32228453,25742.0,25741.0,1.55794]
[1694004316995,2.32240453,25742.0,25741.0,1.55794]
[1694004317197,2.32354453,25742.0,25741.0,1.55794]
[1694004317421,2.32492453,25742.0,25741.0,1.55794]
[1694004317623,2.32432453,25742.0,25741.0,1.55794]
[1694004317821,2.32426453,25742.0,25741.0,1.55794]
[1694004318017,2.32420453,25742.0,25741.0,1.55794]
[1694004318243,2.32660453,25742.0,25741.0,1.55794]
[1694004318442,2.32684453,25742.0,25741.0,1.55794]
[1694004318647,2.33080453,25742.0,25741.0,1.55794]
[1694004318849,2.33242453,25742.0,25741.0,1.55794]
[1694004319049,2.33218453,25742.0,25741.0,1.55794]
[1694004319226,2.33212453,25742.0,25741.0,1.55794]
[1694004319446,2.33188453,25742.0,25741.0,1.55794]
[1694004319656,2.33230453,25742.0,25741.0,1.55794]
[1694004319810,2.33194453,25742.0,25741.0,1.55794]
[1694004320015,2.33164453,25742.0,25741.0,1.55794]
[1694004320214,2.33158453,25742.0,25741.0,1.55794]
[1694004320418,2.45220453,25742.0,25741.0,1.55794]
[1694004320620,2.45184453,25742.0,25741.0,1.55794]
[1694004320874,2.45250453,25742.0,25741.0,1.55794]
[1694004321079,2.45256453,25742.0,25741.0,1.55794]
[1694004321532,2.45256453,25742.0,25741.0,0.78097]
[1694004321703,2.45286453,25742.0,25741.0,0.78097]
[1694004321858,2.45292453,25742.0,25741.0,0.78097]
[1694004322062,2.17313651,25742.0,25741.0,0.78097]
[1694004322285,2.87355651,25742.0,25741.0,0.78097]
[1694004322487,2.87271651,25742.0,25741.0,0.78097]
[1694004322887,2.87265651,25742.0,25741.0,0.78097]
[1694004323090,2.87259651,25742.0,25741.0,0.78097]
[1694004323299,2.87247651,25742.0,25741.0,0.78097]
[1694004323510,2.87289651,25742.0,25741.0,0.78097]
[1694004323713,2.87187651,25742.0,25741.0,0.78097]
[1694004324111,2.87193651,25742.0,25741.0,0.78097]
[1694004324311,2.87163651,25742.0,25741.0,0.78097]
[1694004324534,2.87007651,25742.0,25741.0,0.78097]
[1694004324735,2.86995651,25742.0,25741.0,0.78097]
[1694004324933,2.87019651,25742.0,25741.0,0.78097]
[1694004325133,2.87001651,25742.0,25741.0,0.78097]
[1694004325332,2.87121651,25742.0,25741.0,0.78097]
[1694004325508,2.86731651,25742.0,25741.0,0.78097]
[1694004325730,2.86773651,25742.0,25741.0,0.78097]
[1694004325939,2.86821651,25742.0,25741.0,0.78097]
[1694004326141,2.86977651,25742.0,25741.0,0.78097]
[1694004326495,2.86971651,25742.0,25741.0,0.78097]
[1694004326704,2.86965651,25742.0,25741.0,0.78097]
[1694004327083,2.86935651,25742.0,25741.0,0.78097]
[1694004327248,2.16935651,25742.0,25741.0,0.78097]
[1694004327450,2.16953651,25742.0,25741.0,0.78097]
[1694004327650,2.16983651,25742.0,25741.0,0.78097]
[1694004327811,2.17991651,25742.0,25741.0,0.004]
[1694004328011,2.17925651,25742.0,25741.0,0.004]
[1694004328234,2.17913651,25742.0,25741.0,0.004]
[1694004328457,2.17835651,25742.0,25741.0,0.004]
[1694004328680,2.17811651,25742.0,25741.0,0.78097]
[1694004328995,2.17781651,25742.0,25741.0,0.78097]
[1694004329218,2.17793651,25742.0,25741.0,0.78097]
[1694004329365,2.17799651,25742.0,25741.0,0.78097]
[1694004329562,2.17805651,25742.0,25741.0,0.78097]
[1694004329783,2.17613651,25742.0,25741.0,0.78097]
[1694004330160,2.87631651,25742.0,25741.0,0.78097]
[1694004330571,2.87625651,25742.0,25741.0,0.78097]
[1694004330772,2.87511651,25742.0,25741.0,0.78097]
[1694004330999,2.87523651,25742.0,25741.0,0.78097]
[1694004331289,2.87529651,25742.0,25741.0,0.78097]
[1694004331501,2.87523651,25742.0,25741.0,0.78097]
[1694004331676,2.87517651,25742.0,25741.0,0.78097]
[1694004332063,2.87505651,25742.0,25741.0,0.78097]
[1694004332263,2.87511651,25742.0,25741.0,0.78097]
[1694004332488,2.87499651,25742.0,25741.0,0.78097]
[1694004332682,2.87481651,25742.0,25741.0,0.78097]
[1694004333042,2.87487651,25742.0,25741.0,0.78097]
[1694004333210,2.87499651,25742.0,25741.0,0.78097]
[1694004333408,2.87493651,25742.0,25741.0,0.78097]
[1694004333569,2.87487651,25742.0,25741.0,0.78097]
[1694004333765,4.58781651,25742.0,25741.0,0.004]
[1694004333975,4.58181651,25742.0,25741.0,0.004]
[1694004334189,4.58121651,25742.0,25741.0,0.004]
[1694004334391,4.57941651,25742.0,25741.0,0.004]
[1694004334601,4.58013651,25742.0,25741.0,0.004]
[1694004334802,4.57845651,25742.0,25741.0,0.004]
[1694004335085,4.57869651,25742.0,25741.0,0.004]
[1694004335275,4.57473651,25742.0,25741.0,0.004]
[1694004335502,4.57425651,25742.0,25741.0,0.004]
[1694004335636,4.57497651,25742.0,25741.0,0.004]
[1694004335840,4.57461651,25742.0,25741.0,0.004]
[1694004336040,4.44243651,25742.0,25741.0,0.004]
[1694004336243,4.44231651,25742.0,25741.0,0.004]
[1694004336436,4.44213651,25742.0,25741.0,0.004]
[1694004336614,4.44225651,25742.0,25741.0,0.004]
[1694004336826,4.44189651,25742.0,25741.0,0.004]
[1694004337047,4.44141651,25742.0,25741.0,0.004]
[1694004337252,4.44117651,25742.0,25741.0,0.004]
[1694004337456,4.44093651,25742.0,25741.0,0.004]
[1694004337655,4.44123651,25742.0,25741.0,0.004]
[1694004337854,4.44159651,25742.0,25741.0,0.004]
[1694004338118,4.44147651,25742.0,25741.0,0.004]
[1694004338329,4.44153651,25742.0,25741.0,0.004]
[1694004338501,4.44201651,25742.0,25741.0,0.004]
[1694004338811,4.44117651,25742.0,25741.0,0.004]
[1694004339008,4.44063651,25742.0,25741.0,0.004]
[1694004339190,4.3222374,25742.0,25741.0,0.004]
[1694004339394,4.3220574,25742.0,25741.0,0.004]
[1694004339558,4.3222974,25742.0,25741.0,0.004]
[1694004339756,4.3221774,25742.0,25741.0,0.004]
[1694004339956,4.3239774,25742.0,25741.0,0.004]
[1694004340264,4.3232574,25742.0,25741.0,0.004]
[1694004340488,4.4596374,25742.0,25741.0,0.004]
[1694004340691,4.4555574,25742.0,25741.0,0.004]
[1694004340914,4.46222561,25742.0,25741.0,0.004]
[1694004341114,4.46216561,25742.0,25741.0,0.004]
[1694004341275,4.46222561,25742.0,25741.0,0.004]
[1694004341478,4.45952561,25742.0,25741.0,0.004]
[1694004341683,4.45940561,25742.0,25741.0,0.004]
[1694004341882,4.45088561,25742.0,25741.0,0.004]
[1694004342090,4.45010561,25742.0,25741.0,0.004]
[1694004342290,4.45004561,25742.0,25741.0,0.004]
[1694004342489,3.67190561,25742.0,25741.0,0.004]
[1694004342690,2.88638561,25742.0,25741.0,0.78097]
[1694004342936,2.88320561,25742.0,25741.0,0.78097]
[1694004343132,2.88254561,25742.0,25741.0,0.78097]
[1694004343337,2.88278561,25742.0,25741.0,0.78097]
[1694004343575,2.88266561,25742.0,25741.0,0.78097]
[1694004343779,2.88254561,25742.0,25741.0,0.78097]
[1694004343888,3.16242035,25742.0,25741.0,0.78097]
[1694004344117,3.16248035,25742.0,25741.0,0.78097]
[1694004344319,2.46212035,25742.0,25741.0,1.55794]
[1694004344530,2.46224035,25742.0,25741.0,1.55794]
[1694004344735,2.46236035,25742.0,25741.0,1.55794]
[1694004344935,2.46242035,25742.0,25741.0,1.55794]
[1694004345183,2.46212035,25742.0,25741.0,1.55794]
[1694004345612,2.46266035,25742.0,25741.0,1.55794]
[1694004345825,2.46266035,25742.0,25741.0,0.004]
[1694004345826,2.42004143,25742.0,25741.0,0.004]
[1694004346020,5.5796174,25742.0,25741.0,0.004]
[1694004346264,5.5908974,25742.0,25741.0,0.004]
[1694004346383,5.6001374,25742.0,25741.0,0.004]
[1694004346616,5.7795374,25742.0,25741.0,0.002]
[1694004346807,5.7766574,25742.0,25741.0,0.002]
[1694004347048,5.6018174,25742.0,25741.0,0.002]
[1694004347277,5.5962974,25742.0,25741.0,0.002]
[1694004347486,5.7467174,25742.0,25741.0,0.002]
[1694004347683,5.7228374,25742.0,25741.0,0.002]
[1694004347989,0.92,25738.0,25736.0,0.58478506]
[1694004348191,0.92,25738.0,25736.0,1.36189606]
[1694004348192,0.53044527,25737.0,25736.0,1.36189606]
[1694004348404,1.0573974,25737.0,25736.0,1.36189606]
[1694004348580,1.0506774,25737.0,25736.0,2.13901706]
[1694004348783,0.98858527,25737.0,25736.0,2.13901706]
[1694004348999,1.05057104,25737.0,25736.0,1.36189606]
[1694004349126,1.75117104,25737.0,25736.0,1.36189606]
[1694004349775,1.88777006,25737.0,25736.0,1.36189606]
[1694004349978,1.89479006,25737.0,25736.0,1.36189606]
[1694004350126,1.89479006,25737.0,25736.0,1.36289606]
[1694004350127,1.82843006,25737.0,25736.0,1.36289606]
[1694004350327,1.15243006,25737.0,25736.0,1.36289606]
[1694004351112,1.22083006,25737.0,25736.0,1.36289606]
[1694004351297,1.23301006,25737.0,25736.0,1.36289606]
[1694004351526,1.12047104,25737.0,25736.0,1.36289606]
[1694004351639,1.05758527,25737.0,25736.0,1.36289606]
[1694004351873,1.05728527,25737.0,25736.0,1.36289606]
[1694004352247,1.29030873,25737.0,25736.0,1.36289606]
[1694004352540,1.29024873,25737.0,25736.0,1.36289606]
[1694004352768,1.29060873,25737.0,25736.0,1.36289606]
[1694004352958,1.29054873,25737.0,25736.0,1.36289606]
[1694004353198,1.29048873,25737.0,25736.0,1.36289606]
[1694004353405,1.29036873,25737.0,25736.0,1.36289606]
[1694004353621,1.29054873,25737.0,25736.0,1.36289606]
[1694004353950,1.29060873,25737.0,25736.0,1.36289606]
[1694004354157,1.28898873,25737.0,25736.0,1.36289606]
[1694004354908,1.28958873,25737.0,25736.0,1.36289606]
[1694004355051,1.29060873,25737.0,25736.0,1.36289606]
[1694004355254,1.29216873,25737.0,25736.0,1.36289606]
[1694004355459,1.29168873,25737.0,25736.0,1.36289606]
[1694004355666,1.29162873,25737.0,25736.0,1.36289606]
[1694004355871,1.29144873,25737.0,25736.0,1.36289606]
[1694004356086,1.29000873,25737.0,25736.0,1.36289606]
[1694004356320,1.29012873,25737.0,25736.0,1.36289606]
[1694004356519,1.29006873,25737.0,25736.0,1.36289606]
[1694004356783,1.28952873,25737.0,25736.0,1.36289606]
[1694004357407,1.28958873,25737.0,25736.0,1.36289606]
[1694004357609,1.29006873,25737.0,25736.0,1.36289606]
[1694004358021,1.29000873,25737.0,25736.0,0.58578506]
[1694004358262,1.29048873,25737.0,25736.0,0.58578506]
[1694004358467,1.29012873,25737.0,25736.0,0.58578506]
[1694004358662,1.29030873,25737.0,25736.0,0.58578506]
[1694004358952,1.29024873,25737.0,25736.0,0.58578506]
[1694004359365,1.28916873,25737.0,25736.0,0.58578506]
[1694004359570,1.29072873,25737.0,25736.0,0.58578506]
[1694004360020,1.29138873,25737.0,25736.0,0.58578506]
[1694004360177,1.29018873,25737.0,25736.0,0.58578506]
[1694004360384,1.29024873,25737.0,25736.0,0.59435847]
[1694004360604,1.29018873,25737.0,25736.0,0.59435847]
[1694004360809,2.71451543,25737.0,25736.0,0.001]
[1694004361038,2.71013543,25737.0,25736.0,0.001]
[1694004361241,1.93310443,25737.0,25736.0,0.001]
[1694004361496,1.93298443,25737.0,25736.0,0.001]
[1694004361660,2.63136443,25737.0,25736.0,0.001]
[1694004361828,2.63190443,25737.0,25736.0,0.001]
[1694004362052,2.04311343,25737.0,25736.0,0.001]
[1694004362256,2.04281343,25737.0,25736.0,0.001]
[1694004362416,2.04395343,25737.0,25736.0,0.001]
[1694004362617,2.04365343,25737.0,25736.0,0.001]
[1694004362820,2.04065343,25737.0,25736.0,0.001]
[1694004363136,2.04029343,25737.0,25736.0,0.001]
[1694004363337,2.04167343,25737.0,25736.0,0.001]
[1694004363555,2.04101343,25737.0,25736.0,0.001]
[1694004363910,2.04119343,25737.0,25736.0,0.001]
[1694004364027,2.04125343,25737.0,25736.0,0.001]
[1694004364456,2.04395343,25737.0,25736.0,0.001]
[1694004364660,2.04323343,25737.0,25736.0,0.001]
[1694004365280,2.82038443,25737.0,25736.0,0.001]
[1694004365517,2.82722443,25737.0,25736.0,0.001]
[1694004365695,2.82800443,25737.0,25736.0,0.001]
[1694004365894,2.82788443,25737.0,25736.0,0.001]
[1694004366093,2.82914443,25737.0,25736.0,0.001]
[1694004366275,2.82368443,25737.0,25736.0,0.001]
[1694004366473,2.04275343,25737.0,25736.0,0.001]
[1694004366676,2.04203343,25737.0,25736.0,0.001]
[1694004366917,2.04167343,25737.0,25736.0,0.001]
[1694004367268,2.04023343,25737.0,25736.0,0.00900112]
[1694004367465,2.04143343,25737.0,25736.0,0.00900112]
[1694004367692,2.04869343,25737.0,25736.0,0.001]
[1694004367889,2.82866443,25737.0,25736.0,0.001]
[1694004368385,2.82740443,25737.0,25736.0,0.001]
[1694004368623,2.82722443,25737.0,25736.0,0.001]
[1694004368827,2.83118443,25737.0,25736.0,0.001]
[1694004368944,2.83100443,25737.0,25736.0,0.001]
[1694004369150,2.83082443,25737.0,25736.0,0.001]
[1694004369371,2.83028443,25737.0,25736.0,0.001]
[1694004369571,2.83040443,25737.0,25736.0,0.001]
[1694004369775,2.83028443,25737.0,25736.0,0.001]
[1694004370111,2.83040443,25737.0,25736.0,0.001]
[1694004370247,2.83034443,25737.0,25736.0,0.001]
[1694004370446,2.83022443,25737.0,25736.0,0.001]
[1694004370673,2.82962443,25737.0,25736.0,0.001]
[1694004370872,2.82956443,25737.0,25736.0,0.001]
[1694004371112,2.82866443,25737.0,25736.0,0.001]
[1694004371321,2.82854443,25737.0,25736.0,0.001]
[1694004371529,2.82872443,25737.0,25736.0,0.001]
[1694004371868,2.82902443,25737.0,25736.0,0.001]
[1694004372068,2.82896443,25737.0,25736.0,0.001]
[1694004372308,2.82914443,25737.0,25736.0,0.001]
[1694004372496,2.82926443,25737.0,25736.0,0.001]
[1694004372690,2.82920443,25737.0,25736.0,0.001]
[1694004372917,2.82950443,25737.0,25736.0,0.001]
[1694004373098,2.82932443,25737.0,25736.0,0.001]
[1694004373276,2.82950443,25737.0,25736.0,0.001]
[1694004373639,2.82938443,25737.0,25736.0,0.001]
[1694004373844,2.82860443,25737.0,25736.0,0.001]
[1694004374044,2.82704443,25737.0,25736.0,0.001]
[1694004374464,3.60341543,25737.0,25736.0,0.001]
[1694004374804,3.61097543,25737.0,25736.0,0.001]
[1694004375033,3.60803543,25737.0,25736.0,0.001]
[1694004375208,3.60575543,25737.0,25736.0,0.001]
[1694004375403,3.60563543,25737.0,25736.0,0.001]
[1694004375629,3.60557543,25737.0,25736.0,0.001]
[1694004375816,3.60551543,25737.0,25736.0,0.001]
[1694004376017,3.74471543,25737.0,25736.0,0.001]
[1694004376214,3.61031543,25737.0,25736.0,0.001]
[1694004376396,3.61019543,25737.0,25736.0,0.001]
[1694004376593,3.60845543,25737.0,25736.0,0.001]
[1694004376801,3.60749543,25737.0,25736.0,0.001]
[1694004376984,3.60683543,25737.0,25736.0,0.001]
[1694004377186,3.60719543,25737.0,25736.0,0.001]
[1694004377487,3.60707543,25737.0,25736.0,0.001]
[1694004377658,3.60713543,25737.0,25736.0,0.001]
[1694004377862,3.60701543,25737.0,25736.0,0.001]
[1694004378076,3.60725543,25737.0,25736.0,0.001]
[1694004378271,3.60755543,25737.0,25736.0,0.001]
[1694004378473,3.60797543,25737.0,25736.0,0.001]
[1694004378709,3.60785543,25737.0,25736.0,0.001]
[1694004379899,3.60725543,25737.0,25736.0,0.001]
[1694004380131,4.38416643,25737.0,25736.0,0.001]
[1694004380282,4.53080643,25737.0,25736.0,0.001]
[1694004380485,4.53524643,25737.0,25736.0,0.001]
[1694004380691,4.53416643,25737.0,25736.0,0.001]
[1694004380898,4.53392643,25737.0,25736.0,0.001]
[1694004381102,4.50992643,25737.0,25735.0,0.00882054]
[1694004381303,2.27818686,25736.0,25735.0,0.00882054]
[1694004381504,2.42130686,25736.0,25735.0,0.00882054]
[1694004381702,2.42106686,25736.0,25735.0,0.00882054]
[1694004381910,2.42124686,25736.0,25735.0,0.00882054]
[1694004382077,2.42070686,25736.0,25735.0,0.00882054]
[1694004382278,2.42040686,25736.0,25735.0,0.00882054]
[1694004382485,2.42046686,25736.0,25735.0,0.00882054]
[1694004382747,2.94526686,25736.0,25735.0,0.0010069]
[1694004382879,3.72124786,25736.0,25735.0,0.0010069]
[1694004383086,3.48769543,25736.0,25735.0,0.0010069]
[1694004383314,2.73445443,25736.0,25735.0,0.0010069]
[1694004383520,2.75845443,25736.0,25735.0,0.0010069]
[1694004383723,2.75845443,25736.0,25735.0,0.00796351]
[1694004383724,1.97485343,25736.0,25735.0,0.00796351]
[1694004383916,1.97377343,25736.0,25735.0,0.00796351]
[1694004384119,1.27233343,25736.0,25735.0,0.00796351]
[1694004384328,1.27263343,25736.0,25735.0,0.00796351]
[1694004384602,1.27287343,25736.0,25735.0,0.00796351]
[1694004384822,1.27299343,25736.0,25735.0,0.00796351]
[1694004384980,1.27335343,25736.0,25735.0,0.00796351]
[1694004385184,1.27329343,25736.0,25735.0,0.00796351]
[1694004385463,1.27137343,25736.0,25735.0,0.00796351]
[1694004385696,1.27119343,25736.0,25735.0,0.00796351]
[1694004385897,1.27167343,25736.0,25735.0,0.00796351]
[1694004386070,1.27137343,25736.0,25735.0,0.00796351]
[1694004386426,1.27149343,25736.0,25735.0,0.00796351]
[1694004386800,1.27137343,25736.0,25735.0,0.00796351]
[1694004386974,1.27053343,25736.0,25735.0,0.00796351]
[1694004387201,1.26969343,25736.0,25735.0,0.00796351]
[1694004387491,1.26891343,25736.0,25735.0,0.00796351]
[1694004387686,1.26897343,25736.0,25735.0,0.78511451]
[1694004388091,1.26945343,25736.0,25735.0,0.78511451]
[1694004388295,1.27059343,25736.0,25735.0,0.78511451]
[1694004388670,1.27005343,25736.0,25735.0,0.78511451]
[1694004388991,1.26945343,25736.0,25735.0,0.78511451]
[1694004389143,1.26987343,25736.0,25735.0,0.78511451]
[1694004389350,1.26957343,25736.0,25735.0,0.78511451]
[1694004389557,1.27011343,25736.0,25735.0,0.78511451]
[1694004389740,1.27005343,25736.0,25735.0,0.78511451]
[1694004389967,1.27011343,25736.0,25735.0,0.78511451]
[1694004390367,1.27017343,25736.0,25735.0,0.78511451]
[1694004390574,1.27029343,25736.0,25735.0,0.78511451]
[1694004391027,1.27035343,25736.0,25735.0,0.78511451]
[1694004391224,1.55003538,25736.0,25735.0,0.78511451]
[1694004391474,1.55027538,25736.0,25735.0,0.78511451]
[1694004391646,1.55033538,25736.0,25735.0,0.78511451]
[1694004391856,2.25087538,25736.0,25735.0,0.0010069]
[1694004392060,4.98598713,25736.0,25735.0,0.0010069]
[1694004392236,4.71506518,25736.0,25735.0,0.0010069]
[1694004392435,4.73498518,25736.0,25735.0,0.0010069]
[1694004392660,4.70246518,25736.0,25735.0,0.0010069]
[1694004392837,4.71590518,25736.0,25735.0,0.0010069]
[1694004393208,4.76378518,25736.0,25735.0,0.0010069]
[1694004393388,5.41187999,25736.0,25735.0,0.0010069]
[1694004393562,5.36171999,25736.0,25735.0,0.0010069]
[1694004393768,5.40299999,25736.0,25735.0,0.0010069]
[1694004393972,5.42735999,25736.0,25735.0,0.0010069]
[1694004394183,0.04,25734.0,25733.0,91.68499527]
[1694004394388,5.58075743,25734.0,25733.0,89.24028786]
[1694004394596,8.83758963,25734.0,25733.0,85.91577251]
[1694004394786,8.41050684,25734.0,25733.0,84.40735733]
[1694004395015,14.66940271,25734.0,25733.0,83.69375733]
[1694004395194,8.76900547,25734.0,25733.0,83.69375733]
[1694004395393,11.86998043,25734.0,25733.0,83.49941596]
[1694004395603,6.95847646,25734.0,25733.0,83.49941596]
[1694004395812,6.69691646,25734.0,25733.0,83.49941596]
[1694004396017,7.00596296,25734.0,25733.0,83.49941596]
[1694004396187,6.70266239,25734.0,25733.0,83.49941596]
[1694004396371,6.41287589,25734.0,25733.0,83.49941596]
[1694004396570,6.43603589,25734.0,25733.0,83.49941596]
[1694004396773,6.09757589,25734.0,25733.0,83.30507459]
[1694004397028,6.42560333,25734.0,25733.0,83.30507459]
[1694004397230,6.11681589,25734.0,25733.0,83.11073322]
[1694004397436,3.78129289,25734.0,25733.0,83.11073322]
[1694004397634,3.78129289,25734.0,25733.0,83.88794522]
[1694004397635,2.79161608,25734.0,25733.0,83.88794522]
[1694004397838,3.07055368,25734.0,25733.0,83.23153322]
[1694004398041,3.07055368,25734.0,25733.0,82.91639185]
[1694004398042,2.86430546,25734.0,25733.0,82.91639185]
[1694004398248,1.97914084,25734.0,25733.0,82.91639185]
[1694004398449,1.97596084,25734.0,25733.0,82.91639185]
[1694004398677,1.97416084,25734.0,25733.0,82.91639185]
[1694004398875,1.95820084,25734.0,25733.0,82.91639185]
[1694004399075,2.22731365,25734.0,25733.0,82.91639185]
[1694004399279,2.26580106,25734.0,25733.0,82.91639185]
[1694004399506,2.23559365,25734.0,25733.0,82.72205048]
[1694004399713,2.26340106,25734.0,25733.0,82.52770911]
[1694004399915,2.26436106,25734.0,25733.0,82.52770911]
[1694004400113,2.23229365,25734.0,25733.0,82.52770911]
[1694004400313,2.23673365,25734.0,25733.0,82.52770911]
[1694004400654,2.23751365,25734.0,25733.0,82.52770911]
[1694004400856,2.23763365,25734.0,25733.0,82.33336774]
[1694004401061,2.23859365,25734.0,25733.0,82.33336774]
[1694004401235,2.23907365,25734.0,25733.0,82.13902637]
[1694004401440,2.24069365,25734.0,25733.0,82.13902637]
[1694004401640,2.23781365,25734.0,25733.0,82.13902637]
[1694004401843,2.23787365,25734.0,25733.0,82.13902637]
[1694004402181,2.23925365,25734.0,25733.0,82.13902637]
[1694004402378,2.24093365,25734.0,25733.0,81.944685]
[1694004402590,2.23523365,25734.0,25733.0,81.944685]
[1694004402777,2.23343365,25734.0,25733.0,81.944685]
[1694004402979,2.23349365,25734.0,25733.0,81.944685]
[1694004403214,2.23379365,25734.0,25733.0,81.944685]
[1694004403420,2.23481365,25734.0,25733.0,81.944685]
[1694004403626,2.23871365,25734.0,25733.0,81.75034363]
[1694004403837,2.23895365,25734.0,25733.0,81.75034363]
[1694004404052,2.23361365,25734.0,25733.0,81.55600226]
[1694004404232,2.23373365,25734.0,25733.0,81.55600226]
[1694004404435,1.95459343,25734.0,25733.0,81.55600226]
[1694004404644,1.95435343,25734.0,25733.0,81.55600226]
[1694004404856,1.95501343,25734.0,25733.0,81.55600226]
[1694004405062,1.95495343,25734.0,25733.0,81.36549406]
[1694004405266,1.95507343,25734.0,25733.0,81.36549406]
[1694004405486,1.95381343,25734.0,25733.0,81.36549406]
[1694004405732,1.95405343,25734.0,25733.0,81.36549406]
[1694004406145,1.95375343,25734.0,25733.0,81.36549406]
[1694004406368,1.95357343,25734.0,25733.0,81.36549406]
[1694004406572,1.95327343,25734.0,25733.0,81.36549406]
[1694004406807,1.94451343,25734.0,25733.0,81.36549406]
[1694004407007,1.94505343,25734.0,25733.0,81.36549406]
[1694004407443,1.94517343,25734.0,25733.0,81.36549406]
[1694004407641,1.94499343,25734.0,25733.0,81.36549406]
[1694004407796,1.94505343,25734.0,25733.0,81.36549406]
[1694004407995,1.94487343,25734.0,25733.0,81.36549406]
[1694004408695,1.94493343,25734.0,25733.0,81.36549406]
[1694004408906,1.94193343,25734.0,25733.0,81.36549406]
[1694004409100,1.94139343,25734.0,25733.0,81.36549406]
[1694004409304,1.94523343,25734.0,25733.0,81.36549406]
[1694004409521,1.94481343,25734.0,25733.0,81.36549406]
[1694004409907,1.94769343,25734.0,25733.0,81.36549406]
[1694004410107,1.94763343,25734.0,25733.0,81.36549406]
[1694004410311,1.94769343,25734.0,25733.0,81.36549406]
[1694004410538,1.94781343,25734.0,25733.0,81.36549406]
[1694004410735,1.94793343,25734.0,25733.0,81.36549406]
[1694004411135,1.94799343,25734.0,25733.0,81.36549406]
[1694004411378,1.94793343,25734.0,25733.0,81.36549406]
[1694004411582,1.94799343,25734.0,25733.0,81.36549406]
[1694004411758,1.94793343,25734.0,25733.0,81.36549406]
[1694004411968,1.94799343,25734.0,25733.0,81.36549406]
[1694004412169,1.94913343,25734.0,25733.0,81.36549406]
[1694004412394,1.94781343,25734.0,25733.0,81.36549406]
[1694004412613,1.93065343,25734.0,25733.0,81.36549406]
[1694004412760,2.10083157,25734.0,25733.0,82.14270606]
[1694004412964,2.03123157,25734.0,25733.0,81.36549406]
[1694004413175,1.79864527,25734.0,25733.0,81.48629406]
[1694004413596,1.87106527,25734.0,25733.0,81.48629406]
[1694004413923,1.86866527,25734.0,25733.0,81.48629406]
[1694004414122,1.79864527,25734.0,25733.0,81.48629406]
[1694004414824,1.88510527,25734.0,25733.0,81.48629406]
[1694004415006,1.88492527,25734.0,25733.0,81.48629406]
[1694004415209,1.88384527,25734.0,25733.0,81.48629406]
[1694004415387,1.88372527,25734.0,25733.0,81.48629406]
[1694004415584,1.88378527,25734.0,25733.0,81.48629406]
[1694004415960,1.88366527,25734.0,25733.0,81.48629406]
[1694004416171,1.88486527,25734.0,25733.0,81.48629406]
[1694004416341,1.88456527,25734.0,25733.0,81.48629406]
[1694004416508,1.79864527,25734.0,25733.0,83.04071806]
[1694004416707,1.79864527,25734.0,25733.0,82.26350606]
[1694004416921,1.79864527,25734.0,25733.0,81.48629406]
[1694004417118,0.89864527,25734.0,25733.0,83.04071806]
[1694004417549,0.96950527,25734.0,25733.0,83.04071806]
[1694004417756,0.96944527,25734.0,25733.0,83.04071806]
[1694004417953,0.96908527,25734.0,25733.0,83.04071806]
[1694004418197,0.97700527,25734.0,25733.0,82.26350606]
[1694004418406,0.97610527,25734.0,25733.0,82.26350606]
[1694004418600,0.97712527,25734.0,25733.0,82.26350606]
[1694004418830,0.97736527,25734.0,25733.0,82.26350606]
[1694004419386,0.97688527,25734.0,25733.0,82.26350606]
[1694004419550,0.97400527,25734.0,25733.0,82.26350606]
[1694004419750,0.97394527,25734.0,25733.0,82.14270606]
[1694004420248,1.03372166,25734.0,25733.0,82.14270606]
[1694004420459,1.03714166,25734.0,25733.0,82.14270606]
[1694004420653,1.03876166,25734.0,25733.0,82.14270606]
[1694004420856,1.03882166,25734.0,25733.0,82.14270606]
[1694004421057,0.97610527,25734.0,25733.0,82.14270606]
[1694004421262,1.03612161,25734.0,25733.0,82.14270606]
[1694004421463,1.03678161,25734.0,25733.0,82.14270606]
[1694004421658,1.03552161,25734.0,25733.0,82.14270606]
[1694004421866,1.03564161,25734.0,25733.0,82.14270606]
[1694004422045,1.03606161,25734.0,25733.0,82.14270606]
[1694004422284,1.03744161,25734.0,25733.0,82.14270606]
[1694004422473,1.03690161,25734.0,25733.0,81.36549406]
[1694004422647,1.03348161,25734.0,25733.0,81.36549406]
[1694004422821,1.02538161,25734.0,25733.0,82.14270606]
[1694004423314,1.02802161,25734.0,25733.0,82.14270606]
[1694004423444,1.02808161,25734.0,25733.0,82.14270606]
[1694004423658,1.02574161,25734.0,25733.0,82.14270606]
[1694004424080,1.02640161,25734.0,25733.0,82.14270606]
[1694004424288,1.02928161,25734.0,25733.0,81.36549406]
[1694004424490,1.02814161,25734.0,25733.0,81.36549406]
[1694004424647,1.02874161,25734.0,25733.0,81.36549406]
[1694004424842,1.02934161,25734.0,25733.0,82.14270606]
[1694004425054,1.02994161,25734.0,25733.0,82.14270606]
[1694004425282,1.03078161,25734.0,25733.0,82.14270606]
[1694004425478,1.02646161,25734.0,25733.0,82.14270606]
[1694004425680,1.02802161,25734.0,25733.0,82.14270606]
[1694004425893,1.03168161,25734.0,25733.0,82.14270606]
[1694004426115,1.03216161,25734.0,25733.0,82.14270606]
[1694004426411,1.03228161,25734.0,25733.0,82.14270606]